bitfinex/quotes_BTCUSD_20251010
["timestamp","ask_amount","ask_price","bid_price","bid_amount"]
[1760080800891,0.00159323,121450.0,121440.0,0.43040886]
[1760080802346,0.00924262,121450.0,121440.0,0.43040886]
[1760080804583,0.00924262,121450.0,121440.0,0.66352886]
[1760080804803,0.00159323,121450.0,121440.0,0.66352886]
[1760080805242,0.15928084,121470.0,121460.0,0.18441094]
[1760080805469,0.25616983,121470.0,121460.0,0.35994255]
[1760080805653,0.25616983,121470.0,121460.0,0.38318255]
[1760080806098,0.25617523,121470.0,121460.0,0.38318255]
[1760080807552,0.02301523,121470.0,121460.0,0.38318255]
[1760080807755,0.25613523,121470.0,121460.0,0.38318255]
[1760080810818,0.25716354,121470.0,121460.0,0.38318255]
[1760080815300,0.23419871,121470.0,121460.0,0.38318255]
[1760080815402,0.25719585,121470.0,121460.0,0.38318255]
[1760080817200,0.70859158,121470.0,121460.0,0.38318255]
[1760080817433,0.25719585,121470.0,121460.0,0.38318255]
[1760080821400,0.24186442,121470.0,121460.0,0.38318255]
[1760080822236,0.25721866,121470.0,121460.0,0.38318255]
[1760080822435,0.24186442,121470.0,121460.0,0.38318255]
[1760080823324,0.64014997,121470.0,121460.0,0.10048958]
[1760080823508,0.64014997,121470.0,121460.0,0.04709768]
[1760080823718,0.87310997,121470.0,121460.0,0.04709768]
[1760080824359,0.87310997,121470.0,121460.0,0.07033768]
[1760080824572,0.87310997,121470.0,121460.0,0.23500094]
[1760080824806,0.70846027,121470.0,121460.0,0.27616059]
[1760080825178,0.47550027,121470.0,121460.0,0.27616059]
[1760080825651,0.34274454,121470.0,121460.0,0.27616059]
[1760080825858,0.79414027,121470.0,121460.0,0.27616059]
[1760080827247,0.34274454,121470.0,121460.0,0.27616059]
[1760080827472,0.46014015,121470.0,121460.0,0.27616059]
[1760080827699,0.69306015,121470.0,121460.0,0.27616059]
[1760080827914,0.46014015,121470.0,121460.0,0.27616059]
[1760080828133,0.00874442,121470.0,121460.0,0.30631249]
[1760080828356,0.24166442,121470.0,121460.0,0.30631249]
[1760080828597,0.00876438,121470.0,121460.0,0.30631249]
[1760080828827,0.24168438,121470.0,121460.0,0.38943455]
[1760080829055,0.24168446,121470.0,121460.0,0.38943455]
[1760080829298,0.00876446,121470.0,121460.0,0.38943455]
[1760080829782,0.00107871,121470.0,121460.0,0.38943455]
[1760080830000,0.00107871,121470.0,121460.0,0.62243455]
[1760080831064,0.00107871,121470.0,121460.0,0.62343455]
[1760080831306,0.00107871,121470.0,121460.0,0.39043455]
[1760080831555,0.00107871,121470.0,121460.0,0.62447455]
[1760080832868,0.00107871,121470.0,121460.0,0.62443455]
[1760080833073,0.00107871,121470.0,121460.0,0.39143455]
[1760080833342,0.00107871,121470.0,121460.0,0.62443455]
[1760080835735,0.00107871,121470.0,121460.0,0.39143455]
[1760080835945,0.00107871,121470.0,121460.0,0.62439455]
[1760080836157,0.00107871,121470.0,121460.0,0.39143455]
[1760080836377,0.00107871,121470.0,121460.0,0.62439455]
[1760080837052,0.00107871,121470.0,121460.0,0.39143455]
[1760080837494,0.00107871,121470.0,121460.0,0.62439455]
[1760080838061,0.00107871,121470.0,121460.0,0.39143455]
[1760080838274,0.00107871,121470.0,121460.0,0.62439455]
[1760080841940,1e-08,121470.0,121460.0,0.73143455]
[1760080842188,1e-08,121470.0,121460.0,0.85643454]
[1760080842405,1e-08,121470.0,121460.0,1.11412661]
[1760080842852,1e-08,121470.0,121460.0,0.88116661]
[1760080843109,1e-08,121470.0,121460.0,1.11412661]
[1760080843324,1e-08,121470.0,121460.0,0.88016661]
[1760080843529,1e-08,121470.0,121460.0,1.11308661]
[1760080843969,1e-08,121470.0,121460.0,1.11208661]
[1760080844181,1e-08,121470.0,121460.0,0.88016661]
[1760080844397,1e-08,121470.0,121460.0,1.19976661]
[1760080846055,1e-08,121470.0,121460.0,0.96684661]
[1760080846701,1e-08,121470.0,121460.0,1.19972661]
[1760080847339,1e-08,121470.0,121460.0,1.19980661]
[1760080847547,1e-08,121470.0,121460.0,1.19880661]
[1760080847969,1e-08,121470.0,121460.0,1.20080661]
[1760080848184,1e-08,121470.0,121460.0,0.88216661]
[1760080848396,1e-08,121470.0,121460.0,0.96784661]
[1760080848608,1e-08,121470.0,121460.0,1.11508661]
[1760080848823,1e-08,121470.0,121460.0,1.20076661]
[1760080849038,1e-08,121470.0,121460.0,1.11508661]
[1760080849260,1e-08,121470.0,121460.0,1.20076661]
[1760080849464,1e-08,121470.0,121460.0,1.19976661]
[1760080849989,1e-08,121470.0,121460.0,1.20176661]
[1760080851504,1e-08,121470.0,121460.0,0.88316661]
[1760080851728,1e-08,121470.0,121460.0,1.20168661]
[1760080852403,1e-08,121470.0,121460.0,0.96880661]
[1760080852621,1e-08,121470.0,121460.0,1.20168661]
[1760080854870,1e-08,121470.0,121460.0,0.88316661]
[1760080855083,1e-08,121470.0,121460.0,1.20164661]
[1760080855733,1e-08,121470.0,121460.0,1.10164662]
[1760080855949,1e-08,121470.0,121460.0,1.20164661]
[1760080857244,1e-08,121470.0,121460.0,1.10164662]
[1760080857509,1e-08,121470.0,121460.0,1.20164661]
[1760080858015,1e-08,121470.0,121460.0,0.78316662]
[1760080858281,1e-08,121470.0,121460.0,0.38801472]
[1760080858495,1e-08,121470.0,121460.0,0.57969507]
[1760080858946,1e-08,121470.0,121460.0,0.57769507]
[1760080859187,1e-08,121470.0,121460.0,0.60784697]
[1760080859915,1e-08,121470.0,121460.0,0.37300697]
[1760080860127,1e-08,121470.0,121460.0,0.66192722]
[1760080860339,1e-08,121470.0,121460.0,0.63719515]
[1760080860565,1e-08,121470.0,121460.0,0.63819515]
[1760080861576,1e-08,121470.0,121460.0,0.40523515]
[1760080861790,1e-08,121470.0,121460.0,0.63819515]
[1760080862676,1e-08,121470.0,121460.0,1.23986092]
[1760080862910,1e-08,121470.0,121460.0,1.00690092]
[1760080863136,1e-08,121470.0,121460.0,1.23986092]
[1760080863365,1e-08,121470.0,121460.0,1.00690092]
[1760080863575,1e-08,121470.0,121460.0,1.23986092]
[1760080864779,1e-08,121470.0,121460.0,1.23982092]
[1760080865005,1e-08,121470.0,121460.0,1.26455477]
[1760080865731,1e-08,121470.0,121460.0,1.62955477]
[1760080865939,1e-08,121470.0,121460.0,1.62963477]
[1760080866152,1e-08,121470.0,121460.0,1.39663477]
[1760080866375,1e-08,121470.0,121460.0,1.62963477]
[1760080867023,1e-08,121470.0,121460.0,1.62863477]
[1760080867460,1e-08,121470.0,121460.0,1.99830054]
[1760080867667,1e-08,121470.0,121460.0,2.33130053]
[1760080867877,1e-08,121470.0,121460.0,2.09930053]
[1760080868110,1e-08,121470.0,121460.0,2.33230053]
[1760080868746,1e-08,121470.0,121460.0,2.09930053]
[1760080868968,1e-08,121470.0,121460.0,1.73067476]
[1760080871642,1e-08,121470.0,121460.0,2.33234053]
[1760080872460,1e-08,121470.0,121460.0,1.73067476]
[1760080873016,1e-08,121470.0,121460.0,1.49763476]
[1760080873249,1e-08,121470.0,121460.0,1.58327476]
[1760080873683,1e-08,121470.0,121460.0,1.81623476]
[1760080877434,1e-08,121470.0,121460.0,1.49763476]
[1760080877643,1e-08,121470.0,121460.0,1.81619476]
[1760080878894,1e-08,121470.0,121460.0,1.58327476]
[1760080879105,1e-08,121470.0,121460.0,1.81619476]
[1760080879342,1e-08,121470.0,121460.0,1.49763476]
[1760080879523,1e-08,121470.0,121460.0,1.81615476]
[1760080880499,1e-08,121470.0,121460.0,2.41782053]
[1760080882828,1e-08,121470.0,121460.0,2.18494053]
[1760080883040,1e-08,121470.0,121460.0,2.41782053]
[1760080883266,1e-08,121470.0,121460.0,2.41786053]
[1760080886382,1e-08,121470.0,121460.0,2.09930053]
[1760080886599,1e-08,121470.0,121460.0,2.18494053]
[1760080886788,1e-08,121470.0,121460.0,2.41782053]
[1760080887259,1e-08,121470.0,121460.0,2.18494053]
[1760080887476,1e-08,121470.0,121460.0,2.41782053]
[1760080887706,1e-08,121470.0,121460.0,2.18494053]
[1760080887957,1e-08,121470.0,121460.0,2.41782053]
[1760080889263,1e-08,121470.0,121460.0,2.09930053]
[1760080889484,1e-08,121470.0,121460.0,2.41782053]
[1760080889936,1e-08,121470.0,121460.0,2.09930053]
[1760080890161,1e-08,121470.0,121460.0,2.41778053]
[1760080892915,1e-08,121470.0,121460.0,2.18494053]
[1760080893117,1e-08,121470.0,121460.0,2.31778054]
[1760080893333,1e-08,121470.0,121460.0,2.41778053]
[1760080893971,1e-08,121470.0,121460.0,2.68538053]
[1760080895048,1e-08,121470.0,121460.0,2.58538054]
[1760080895271,1e-08,121470.0,121460.0,2.45254053]
[1760080895511,1e-08,121470.0,121460.0,2.68534053]
[1760080895917,1e-08,121470.0,121460.0,2.36690053]
[1760080896120,1e-08,121470.0,121460.0,2.41774053]
[1760080897197,1e-08,121470.0,121460.0,2.09930053]
[1760080897413,1e-08,121470.0,121460.0,1.49763476]
[1760080897634,1e-08,121470.0,121460.0,1.71611477]
[1760080897862,1e-08,121470.0,121460.0,1.39763477]
[1760080898078,1e-08,121470.0,121460.0,1.48327477]
[1760080898529,1e-08,121470.0,121460.0,1.71611477]
[1760080898743,1e-08,121470.0,121460.0,1.58327476]
[1760080899181,1e-08,121470.0,121460.0,1.81611476]
[1760080900058,1e-08,121470.0,121460.0,1.58327476]
[1760080900281,1e-08,121470.0,121460.0,1.81611476]
[1760080904561,1e-08,121470.0,121460.0,1.81607476]
[1760080905223,1e-08,121470.0,121460.0,1.71607477]
[1760080905447,1e-08,121470.0,121460.0,1.81607476]
[1760080906606,1e-08,121470.0,121460.0,1.71607477]
[1760080906819,1e-08,121470.0,121460.0,1.81607476]
[1760080907813,1e-08,121470.0,121460.0,1.71607477]
[1760080908033,1e-08,121470.0,121460.0,1.81607476]
[1760080909190,1e-08,121470.0,121460.0,1.39763477]
[1760080909404,1e-08,121470.0,121460.0,1.48327477]
[1760080909618,1e-08,121470.0,121460.0,2.46755803]
[1760080910086,1e-08,121470.0,121460.0,2.14915803]
[1760080910312,1e-08,121470.0,121460.0,2.01649502]
[1760080910735,1e-08,121470.0,121460.0,2.56755802]
[1760080910944,1e-08,121470.0,121460.0,2.56555802]
[1760080911157,1e-08,121470.0,121460.0,2.24715802]
[1760080911381,1e-08,121470.0,121460.0,2.56655802]
[1760080912166,1e-08,121470.0,121460.0,2.33379802]
[1760080912390,1e-08,121470.0,121460.0,2.56555802]
[1760080912688,1e-08,121470.0,121460.0,2.46655803]
[1760080913159,1e-08,121470.0,121460.0,2.56655802]
[1760080913301,1e-08,121470.0,121460.0,2.46655803]
[1760080913505,1e-08,121470.0,121460.0,2.24815802]
[1760080913719,0.77147394,121520.0,121510.0,0.1947474]
[1760080913937,1.2230414,121520.0,121510.0,0.1947474]
[1760080914120,1.2230414,121520.0,121510.0,0.23265781]
[1760080914325,1.15684637,121520.0,121510.0,0.23265781]
[1760080915481,1.15684637,121520.0,121510.0,0.1947474]
[1760080916530,1.15784637,121520.0,121510.0,0.1947474]
[1760080916740,0.48444641,121520.0,121510.0,0.19729295]
[1760080916949,0.93550942,121520.0,121510.0,0.19729295]
[1760080917156,1.38657243,121520.0,121510.0,0.19729295]
[1760080917398,1.38657243,121520.0,121510.0,0.03269745]
[1760080917794,1.38657243,121520.0,121510.0,0.05244513]
[1760080918220,1.38657243,121520.0,121510.0,0.21704063]
[1760080918871,1.38657243,121520.0,121510.0,0.05269297]
[1760080919543,1.38914195,121520.0,121510.0,0.21728847]
[1760080919769,1.38914195,121520.0,121510.0,0.05269297]
[1760080919989,2.93840403,121520.0,121510.0,0.02254107]
[1760080920211,5.94575709,121520.0,121510.0,0.00279339]
[1760080920435,5.30751952,121520.0,121510.0,0.00279339]
[1760080920656,8.32252655,121520.0,121510.0,0.00279339]
[1760080920881,0.50463615,121480.0,121470.0,0.08594271]
[1760080921106,2.50632518,121480.0,121470.0,0.06619503]
[1760080921332,2.50632518,121480.0,121450.0,0.08731733]
[1760080921333,0.16466326,121460.0,121450.0,0.08731733]
[1760080921551,1.29966928,121460.0,121450.0,0.11746923]
[1760080921784,1.29970928,121460.0,121450.0,0.11746923]
[1760080921991,1.38534928,121460.0,121450.0,0.18579912]
[1760080922215,0.90262985,121460.0,121450.0,0.21595102]
[1760080922425,1.22118985,121460.0,121450.0,0.18579912]
[1760080922940,1.22118985,121460.0,121450.0,0.03152652]
[1760080923157,1.51835612,121460.0,121450.0,0.0211223]
[1760080923390,1.94399612,121460.0,121450.0,0.0211223]
[1760080923607,1.72585311,121460.0,121450.0,0.0211223]
[1760080924038,1.40729311,121460.0,121450.0,0.0211223]
[1760080924255,1.32830985,121460.0,121450.0,0.18579912]
[1760080924466,0.65914383,121460.0,121450.0,0.18579912]
[1760080924893,0.79156684,121460.0,121450.0,0.18579912]
[1760080925106,1.11020684,121460.0,121450.0,0.20178912]
[1760080925322,0.34050383,121460.0,121450.0,0.24514325]
[1760080925544,0.65914383,121460.0,121450.0,0.28205325]
[1760080925757,1.11020684,121460.0,121450.0,0.28205325]
[1760080925971,1.11020684,121460.0,121450.0,0.21414912]
[1760080926226,1.56126985,121460.0,121450.0,0.21414912]
[1760080926494,0.79965155,121460.0,121450.0,0.18579912]
[1760080926723,1.03261155,121460.0,121450.0,0.21414912]
[1760080926957,1.11829155,121460.0,121450.0,0.21414912]
[1760080927173,0.79965155,121460.0,121450.0,0.25873925]
[1760080927401,1.11829155,121460.0,121450.0,0.23869912]
[1760080928076,1.11829155,121460.0,121450.0,0.21414912]
[1760080929150,0.79965155,121460.0,121450.0,0.21414912]
[1760080929390,1.11833155,121460.0,121450.0,0.21414912]
[1760080930020,0.79965155,121460.0,121450.0,0.21414912]
[1760080930337,0.34050383,121460.0,121450.0,0.28328925]
[1760080930513,1.11020684,121460.0,121450.0,0.28328925]
[1760080930969,1.02456684,121460.0,121450.0,0.26885102]
[1760080931191,1.02452684,121460.0,121450.0,0.26885102]
[1760080931406,0.79156684,121460.0,121450.0,0.26885102]
[1760080931613,1.11020684,121460.0,121450.0,0.26885102]
[1760080932691,0.34,121470.0,121460.0,0.18441094]
[1760080932920,0.66627867,121470.0,121460.0,0.22776237]
[1760080933391,0.43331867,121470.0,121460.0,0.18441094]
[1760080933617,0.83092837,121470.0,121460.0,0.18441094]
[1760080933831,1.73305439,121470.0,121460.0,0.18441094]
[1760080934044,1.74117206,121470.0,121460.0,0.18441094]
[1760080934491,1.80430226,121470.0,121460.0,0.18441094]
[1760080935762,1.48566226,121470.0,121460.0,0.22370837]
[1760080935973,1.35323925,121470.0,121460.0,0.22370837]
[1760080936121,1.35323925,121470.0,121460.0,0.18441094]
[1760080936537,1.80430226,121470.0,121460.0,0.18441094]
[1760080938376,0.86994955,121470.0,121460.0,0.18441094]
[1760080938553,0.41888654,121470.0,121460.0,0.18441094]
[1760080938756,1.18854955,121470.0,121460.0,0.27906337]
[1760080938962,0.41888654,121470.0,121460.0,0.27906337]
[1760080939170,1.18854955,121470.0,121460.0,0.27906337]
[1760080939381,1.18854955,121470.0,121460.0,0.25451337]
[1760080941195,0.95562955,121470.0,121460.0,0.25451337]
[1760080941375,1.13557353,121470.0,121460.0,0.18441094]
[1760080941522,1.20384383,121470.0,121460.0,0.20040094]
[1760080942533,0.90779363,121470.0,121460.0,0.20040094]
[1760080942714,0.09331867,121470.0,121460.0,0.80164791]
[1760080942929,0.09331867,121470.0,121460.0,0.4305817]
[1760080943401,0.32631867,121470.0,121460.0,0.3505849]
[1760080943815,0.54438168,121470.0,121460.0,0.3505849]
[1760080944036,0.77738168,121470.0,121460.0,0.3505849]
[1760080944239,0.77727466,121470.0,121460.0,0.3505849]
[1760080944666,0.54427466,121470.0,121460.0,0.3260349]
[1760080944841,0.77727466,121470.0,121460.0,0.2976849]
[1760080945082,1.15998737,121470.0,121460.0,0.04989958]
[1760080945290,1.51530296,121470.0,121460.0,0.01974768]
[1760080945541,1.74834296,121470.0,121460.0,0.01974768]
[1760080946330,1.53296628,121470.0,121460.0,0.01974768]
[1760080946553,1.53296628,121470.0,121450.0,0.00137462]
[1760080946554,0.50466326,121460.0,121450.0,0.00137462]
[1760080946766,1.89082919,121460.0,121450.0,0.0211727]
[1760080946940,1.43976618,121460.0,121450.0,0.0211727]
[1760080947152,1.67280618,121460.0,121450.0,0.0211727]
[1760080948139,1.4397915,121460.0,121450.0,0.0211727]
[1760080948347,2.1235102,121460.0,121450.0,0.0211727]
[1760080949365,2.15296621,121460.0,121450.0,0.015815]
[1760080949765,2.15296621,121460.0,121450.0,5.04e-05]
[1760080950011,2.15296621,121460.0,121450.0,0.015815]
[1760080950215,2.34883052,121460.0,121450.0,0.015815]
[1760080950424,2.58187052,121460.0,121450.0,5.04e-05]
[1760080950781,3.13609552,121460.0,121450.0,5.04e-05]
[1760080951636,2.90305552,121460.0,121450.0,5.04e-05]
[1760080951897,3.18018477,121460.0,121450.0,5.04e-05]
[1760080953441,3.48018477,121460.0,121450.0,5.04e-05]
[1760080954685,2.81862477,121460.0,121450.0,5.04e-05]
[1760080954923,3.18022477,121460.0,121450.0,5.04e-05]
[1760080955968,5.56640877,121460.0,121450.0,5.04e-05]
[1760080956199,5.57408919,121460.0,121450.0,5.04e-05]
[1760080956412,5.57429719,121460.0,121450.0,5.04e-05]
[1760080956621,6.06129519,121460.0,121450.0,5.04e-05]
[1760080956830,2.95842816,121460.0,121450.0,5.04e-05]
[1760080957162,6.30994416,121460.0,121450.0,5.04e-05]
[1760080957389,6.21701416,121460.0,121450.0,5.04e-05]
[1760080957638,2.95842816,121460.0,121450.0,5.04e-05]
[1760080957773,6.21701416,121460.0,121450.0,5.04e-05]
[1760080958147,6.23288316,121460.0,121450.0,5.04e-05]
[1760080958568,6.24407116,121460.0,121450.0,5.04e-05]
[1760080958727,6.22636216,121460.0,121450.0,5.04e-05]
[1760080958921,6.21731716,121460.0,121450.0,5.04e-05]
[1760080959126,6.22762716,121460.0,121450.0,5.04e-05]
[1760080959328,5.50094116,121460.0,121450.0,5.04e-05]
[1760080959531,5.21581416,121460.0,121450.0,5.04e-05]
[1760080959734,2.95842816,121460.0,121450.0,5.04e-05]
[1760080959901,5.40581416,121460.0,121450.0,5.04e-05]
[1760080960559,5.60595016,121460.0,121450.0,5.04e-05]
[1760080960812,5.58076316,121460.0,121450.0,5.04e-05]
[1760080961333,5.79898316,121460.0,121450.0,5.04e-05]
[1760080961559,0.50480878,121450.0,121440.0,0.0157646]
[1760080961764,1.70275944,121450.0,121440.0,0.00050383]
[1760080961975,4.59980144,121450.0,121440.0,0.00050383]
[1760080962185,4.58277393,121450.0,121440.0,0.00050383]
[1760080962397,4.18452211,121450.0,121440.0,0.00050383]
[1760080962613,4.27484511,121450.0,121440.0,0.00050383]
[1760080962825,4.3273227,121450.0,121440.0,0.00050383]
[1760080963040,4.28979023,121450.0,121440.0,0.00050383]
[1760080963259,4.29746368,121450.0,121440.0,0.00050383]
[1760080963466,4.30421261,121450.0,121440.0,0.00150383]
[1760080963675,4.29746408,121450.0,121440.0,0.00150383]
[1760080964120,4.29746408,121450.0,121440.0,0.00050383]
[1760080964331,4.04907678,121450.0,121440.0,0.00050383]
[1760080964560,4.30517735,121450.0,121440.0,0.00050383]
[1760080964769,4.36600868,121450.0,121440.0,0.00050383]
[1760080965401,4.21605074,121450.0,121440.0,0.00050383]
[1760080965609,4.90019375,121450.0,121440.0,0.00050383]
[1760080965815,4.21605074,121450.0,121440.0,0.00050383]
[1760080966021,4.87773074,121450.0,121440.0,0.00050383]
[1760080966233,6.68070374,121450.0,121440.0,0.00050383]
[1760080966441,5.75282374,121450.0,121440.0,0.00050383]
[1760080966645,5.76921474,121450.0,121440.0,0.00050383]
[1760080966850,2.28262374,121450.0,121440.0,0.00050383]
[1760080967056,5.76921574,121450.0,121440.0,0.00050383]
[1760080967282,5.74323174,121450.0,121440.0,0.00101813]
[1760080967485,5.78580671,121450.0,121440.0,0.00101813]
[1760080967695,5.79900371,121450.0,121440.0,0.00101813]
[1760080967902,2.28262374,121450.0,121440.0,0.00101813]
[1760080968111,6.19238874,121450.0,121440.0,0.00101813]
[1760080968320,5.98314636,121450.0,121440.0,0.00101813]
[1760080968559,6.01096936,121450.0,121440.0,0.00101813]
[1760080968701,6.03267036,121450.0,121440.0,0.00101813]
[1760080968908,2.28261536,121450.0,121440.0,0.00101813]
[1760080969115,5.72994236,121450.0,121440.0,0.00101813]
[1760080969309,6.1320272,121450.0,121440.0,0.00101813]
[1760080969543,2.6073832,121450.0,121440.0,0.00101813]
[1760080969744,6.1333122,121450.0,121440.0,0.00101813]
[1760080969946,3.6292282,121450.0,121440.0,0.00101813]
[1760080970192,2.6073832,121450.0,121440.0,0.00101813]
[1760080970506,5.3615842,121450.0,121440.0,0.00101813]
[1760080970714,7.24179511,121450.0,121440.0,0.00101813]
[1760080971071,7.28588436,121450.0,121440.0,0.00101813]
[1760080971305,7.24179511,121450.0,121440.0,0.00101813]
[1760080971496,2.61411811,121450.0,121440.0,0.00101813]
[1760080971690,7.24179511,121450.0,121440.0,0.00101813]
[1760080972012,7.28688436,121450.0,121440.0,0.00101813]
[1760080972659,7.25806461,121450.0,121440.0,0.00101813]
[1760080973011,6.55229536,121450.0,121440.0,0.00101813]
[1760080973253,2.63038761,121450.0,121440.0,0.00101813]
[1760080973488,7.13310236,121450.0,121440.0,0.00101813]
[1760080973690,7.21397536,121450.0,121440.0,0.00101813]
[1760080974746,7.04530436,121450.0,121440.0,0.00101813]
[1760080974957,7.21397536,121450.0,121440.0,0.00101813]
[1760080975379,7.00303676,121450.0,121440.0,0.00101813]
[1760080975576,2.60843976,121450.0,121440.0,0.00101813]
[1760080975782,7.23611676,121450.0,121440.0,0.00101813]
[1760080976035,7.23607676,121450.0,121440.0,0.00101813]
[1760080976258,7.21397536,121450.0,121440.0,0.00101813]
[1760080976398,2.37536495,121450.0,121440.0,0.00101813]
[1760080976601,7.23608195,121450.0,121440.0,0.00101813]
[1760080977201,2.60840495,121450.0,121440.0,0.00101813]
[1760080977558,7.20662594,121450.0,121440.0,0.00101813]
[1760080977970,7.41848594,121450.0,121440.0,0.00101813]
[1760080978181,7.65152594,121450.0,121440.0,0.00101813]
[1760080978372,2.82026495,121450.0,121440.0,0.00101813]
[1760080978592,7.31397535,121450.0,121440.0,0.00101813]
[1760080978793,7.36755048,121450.0,121440.0,0.00101813]
[1760080979009,7.15955473,121450.0,121440.0,0.00101813]
[1760080979167,7.43672398,121450.0,121440.0,0.00101813]
[1760080979386,7.41373834,121450.0,121440.0,0.00101813]
[1760080979584,0.00823587,121420.0,121390.0,0.06665703]
[1760080979808,0.76714915,121400.0,121390.0,0.08242163]
[1760080980015,1.00846118,121400.0,121390.0,0.08242163]
[1760080980226,0.17297667,121400.0,121390.0,0.0162266]
[1760080980428,0.77538118,121400.0,121390.0,0.0162266]
[1760080980626,1.61086569,121400.0,121390.0,0.0162266]
[1760080980807,1.95382569,121400.0,121390.0,0.0162266]
[1760080981008,1.35142118,121400.0,121390.0,0.0162266]
[1760080981215,1.69142118,121400.0,121390.0,0.0162266]
[1760080981412,1.70676962,121400.0,121390.0,0.0162266]
[1760080981792,1.47368962,121400.0,121390.0,0.0162266]
[1760080982119,1.70676962,121400.0,121390.0,0.0162266]
[1760080982320,1.71443806,121400.0,121390.0,0.0162266]
[1760080983272,1.48135806,121400.0,121390.0,0.0162266]
[1760080983585,3.91655857,121400.0,121390.0,0.000462]
[1760080984202,3.97811913,121400.0,121390.0,0.000462]
[1760080984647,2.54023011,121400.0,121390.0,0.000462]
[1760080984856,3.97815913,121400.0,121390.0,0.000462]
[1760080986006,2.84944213,121400.0,121390.0,0.000462]
[1760080986248,2.56708962,121400.0,121390.0,0.000462]
[1760080986476,3.16949413,121400.0,121390.0,0.00303465]
[1760080987362,3.18714823,121400.0,121390.0,0.00303465]
[1760080989774,2.52530823,121400.0,121390.0,0.00303465]
[1760080989985,2.22669072,121400.0,121390.0,0.00303465]
[1760080990860,2.81454723,121400.0,121390.0,0.00303465]
[1760080991558,2.58142723,121400.0,121390.0,0.00303465]
[1760080991757,2.81450723,121400.0,121390.0,0.00303465]
[1760080992000,2.21210272,121400.0,121390.0,0.00303465]
[1760080992663,1.14166808,121400.0,121390.0,0.21211746]
[1760080992892,0.75468947,121400.0,121390.0,0.21211746]
[1760080993128,0.75164947,121400.0,121390.0,0.2233264]
[1760080993363,0.75172947,121400.0,121390.0,0.2233264]
[1760080993580,0.43280947,121400.0,121390.0,0.21211746]
[1760080993817,0.44110844,121400.0,121390.0,0.23563746]
[1760080994034,0.65892,121400.0,121390.0,0.23563746]
[1760080995528,0.65892,121400.0,121390.0,0.21987286]
[1760080995945,0.34,121400.0,121390.0,0.25959803]
[1760080996148,0.65892,121400.0,121390.0,0.25959803]
[1760080996354,0.65892,121400.0,121390.0,0.21987286]
[1760080996990,0.65892,121400.0,121390.0,0.23563746]
[1760080997866,0.68194459,121400.0,121390.0,0.21211746]
[1760080998511,0.68194589,121400.0,121390.0,0.21211746]
[1760080999382,1.44141888,121400.0,121390.0,0.18355746]
[1760080999621,1.44909583,121400.0,121390.0,0.18355746]
[1760080999840,1.28435119,121400.0,121390.0,0.18355746]
[1760081000267,1.21593583,121400.0,121390.0,0.01879925]
[1760081000479,1.44905752,121400.0,121390.0,0.01879925]
[1760081001964,1.13017752,121400.0,121390.0,0.01879925]
[1760081002169,1.44909752,121400.0,121390.0,0.01879925]
[1760081003224,1.21593752,121400.0,121390.0,0.01879925]
[1760081003434,0.67427952,121400.0,121390.0,0.19990746]
[1760081003646,0.65892,121400.0,121390.0,0.25219809]
[1760081003849,0.65892,121400.0,121390.0,0.27571809]
[1760081004088,0.65892,121400.0,121390.0,0.23563746]
[1760081004292,0.34,121400.0,121390.0,0.23563746]
[1760081004502,0.65892,121400.0,121390.0,0.23563746]
[1760081005362,0.34,121400.0,121390.0,0.23563746]
[1760081005558,0.65892,121400.0,121390.0,0.27693909]
[1760081005770,0.42576,121400.0,121390.0,0.21211746]
[1760081006179,0.65892,121400.0,121390.0,0.21211746]
[1760081006647,1.19290915,121400.0,121390.0,0.18355746]
[1760081006849,1.42606915,121400.0,121390.0,0.18355746]
[1760081007063,1.42606915,121400.0,121390.0,0.01879925]
[1760081008984,1.19290915,121400.0,121390.0,0.01879925]
[1760081009215,1.42610915,121400.0,121390.0,0.01879925]
[1760081009824,1.19290915,121400.0,121390.0,0.01879925]
[1760081010025,1.42606915,121400.0,121390.0,0.01879925]
[1760081010475,1.19290915,121400.0,121390.0,0.01879925]
[1760081010657,1.42606915,121400.0,121390.0,0.01879925]
[1760081011006,1.19290915,121400.0,121390.0,0.01879925]
[1760081011206,1.42606915,121400.0,121390.0,0.01879925]
[1760081012087,2.35227727,121400.0,121390.0,0.00303465]
[1760081012402,0.34,121400.0,121390.0,0.21211746]
[1760081012582,0.65888,121400.0,121390.0,0.21211746]
[1760081012806,0.42572,121400.0,121390.0,0.21211746]
[1760081013019,0.659,121400.0,121390.0,0.21211746]
[1760081013645,0.42572,121400.0,121390.0,0.23629746]
[1760081013886,0.65896,121400.0,121390.0,0.23629746]
[1760081014572,0.65904,121400.0,121390.0,0.23629746]
[1760081016245,0.659,121400.0,121390.0,0.23629746]
[1760081017053,0.34,121400.0,121390.0,0.23629746]
[1760081017258,0.659,121400.0,121390.0,0.23629746]
[1760081017642,0.659,121400.0,121390.0,0.3105547]
[1760081018250,0.42572,121400.0,121390.0,0.23629746]
[1760081018597,0.42572,121400.0,121390.0,0.21211746]
[1760081018799,0.659,121400.0,121390.0,0.23629746]
[1760081019424,0.34,121400.0,121390.0,0.23629746]
[1760081019563,0.42572,121400.0,121390.0,0.23629746]
[1760081019769,0.65896,121400.0,121390.0,0.23629746]
[1760081020771,0.65896,121400.0,121390.0,0.39941632]
[1760081020975,0.65896,121400.0,121390.0,0.31941952]
[1760081022380,0.34,121400.0,121390.0,0.31941952]
[1760081022590,0.65896,121400.0,121390.0,0.92182403]
[1760081022800,0.65896,121400.0,121390.0,0.31941952]
[1760081024734,0.65896,121400.0,121390.0,0.34957142]
[1760081024933,0.31896,121400.0,121390.0,0.34957142]
[1760081026572,0.31896,121400.0,121390.0,0.41510075]
[1760081027128,0.31896,121400.0,121390.0,0.34957142]
[1760081027353,0.35501552,121410.0,121400.0,0.18050924]
[1760081027555,0.67393552,121410.0,121400.0,0.2920413]
[1760081027759,0.65892,121410.0,121400.0,0.3148113]
[1760081027954,0.65892,121410.0,121400.0,0.31686925]
[1760081030784,0.67362496,121410.0,121400.0,0.31686925]
[1760081031324,0.34,121410.0,121400.0,0.36000905]
[1760081031551,0.65888,121410.0,121400.0,0.81173383]
[1760081032713,0.65888,121410.0,121400.0,0.36000905]
[1760081032920,0.65888,121410.0,121400.0,0.81173383]
[1760081033537,0.42572,121410.0,121400.0,0.31686925]
[1760081033748,0.65888,121410.0,121400.0,0.29409925]
[1760081033956,1.11060478,121410.0,121400.0,0.29409925]
[1760081034168,1.11060478,121410.0,121400.0,0.31686925]
[1760081034794,0.65884,121410.0,121400.0,0.31686925]
[1760081035819,0.42572,121410.0,121400.0,0.3880191]
[1760081036025,0.65884,121410.0,121400.0,0.3880191]
[1760081037320,0.65884,121410.0,121400.0,0.31686925]
[1760081042386,0.6588,121410.0,121400.0,0.31686925]
[1760081043177,0.65797512,121410.0,121400.0,0.31686925]
[1760081044591,0.42489512,121410.0,121400.0,0.31686925]
[1760081044768,0.65793512,121410.0,121400.0,0.31686925]